Cogmind - Beta 15 *** ADVENTURER MODE // 2025.07.31 @ 12:20:08 Player: LegoMDS Result: Destroyed by 1L-43W(R) with Subdweller Machine Gun Performance ------------- Evolutions (0) 0 Regions Visited (2) 400 Robots Destroyed (19) 95 Value Destroyed (492) 492 Prototype IDs (4) 80 Alien Tech Used (0) 0 Bonus (0) 0 TOTAL SCORE: 1067 Bonus ------- None Cogmind --------- Core Integrity 0/250 Matter 278/300 Energy 245/250 System Corruption 3% Temperature Cool (0) Movement Treading (160) Location -10/Subcaves Parts ------- > --- POWER (1) -------- Ion Engine > --- PROPULSION (2) --- Improved Treads Improved Treads > --- UTILITY (2) ------ Scrap Shield > --- WEAPON (2) ------- Particle Gun Flail > --- INVENTORY (5) ---- Subdweller Laser Battle Cannon Grenade Launcher Peak State ------------ > --- POWER ------------ Ion Engine > --- PROPULSION ------- Improved Treads Improved Treads > --- UTILITY ---------- Large Storage Unit Core Shielding > --- WEAPON ----------- Particle Gun Flail > --- INVENTORY -------- Ion Engine Subdweller Power Source Aluminum Leg Aluminum Leg Improved Heat Sink Subdweller Optics Scrap Shield Rainbow Chip Subdweller Laser Battle Cannon Grenade Launcher Datajack [Rating: 14] Favorites ----------- Power Ion Engine Engine Ion Engine Propulsion Improved Treads Treads Improved Treads Utility Improved Heat Sink Device Improved Heat Sink Storage Large Storage Unit Protection Core Shielding Weapon Particle Gun Energy Gun Particle Gun Ballistic Gun Light Assault Rifle Impact Weapon Flail Build | -11 -10 -10 ------- Run | Yrd Mat Sub Slots Evolved . | . . . Power . | . . . Propulsion . | . . . Utility . | . . . Weapon . | . . . Parts Attached 19 | 6 9 4 Power 2 | 1 1 . Engine 2 | 1 1 . Core . | . . . Reactor . | . . . Propulsion 6 | 2 2 2 Treads 6 | 2 2 2 Leg . | . . . Wheel . | . . . Hover . | . . . Flight . | . . . Utility 6 | 1 4 1 Device 1 | . 1 . Storage 3 | 1 2 . Processor . | . . . Hackware . | . . . Protection 2 | . 1 1 Artifact . | . . . Weapon 5 | 2 2 1 Energy Gun 2 | 1 1 . Energy Cannon . | . . . Ballistic Gun 2 | 1 1 . Ballistic Cannon . | . . . Launcher . | . . . Special Weapon . | . . . Impact Weapon 1 | . . 1 Slashing Weapon . | . . . Piercing Weapon . | . . . Special Melee Weapon . | . . . Unidentified Prototypes . | . . . Parts Lost 3 | . . 3 Power 1 | . . 1 Propulsion 1 | . . 1 Utility . | . . . Weapon 1 | . . 1 Highest Loss Streak 3 | . . 3 To Critical Strikes . | . . . Average Backups 8 | 2 7 11 Power 1 | . 1 1 Propulsion 3 | . 3 2 Utility 1 | . . 3 Weapon 2 | . 2 2 Tool/Special . | . . . Unused Backups 9 | . . 9 Power 1 | . . 1 Propulsion 2 | . . 2 Utility 2 | . . 2 Weapon 3 | . . 3 Tool/Special 1 | . . 1 Average Slot Usage (%) 97 | . 97 97 Engine 13 | . 13 12 Treads 28 | . 28 28 Device 7 | . 11 . Storage 13 | . 14 13 Protection 4 | . . 13 Energy Gun 14 | . 14 14 Ballistic Gun 10 | . 13 4 Impact Weapon 3 | . . 9 Peak Build Rating 14 | 6 13 14 Average Rating 12 | 3 12 13 On Entrance 5 | . 6 11 Naked Turns . | . . . Heaviest Build 50 | 12 50 31 Greatest Support 46 | 40 46 46 Greatest Overweight (x) 1 | . 1 . Average Overweight (x) . | . . . Largest Inventory Capacity 20 | 8 20 15 Average Capacity 13 | 6 12 14 Most Carried 15 | 5 9 15 Average Carried 8 | 3 7 11 Final Capacity 15 | 8 15 5 Final Carried 9 | 4 9 3 Class Distribution -------------------- 100% | Mutant Dominant Class ---------------- Mutant | -10/Materials Mutant | -10/Subcaves Resources | -11 -10 -10 ----------- Run | Yrd Mat Sub Matter Collected 533 | 230 191 112 Remotely . | . . . Salvage Created 752 | . 582 170 Parts 41 | . 33 8 Haulers Intercepted 2 | . 2 . Recyclers Shooed 1 | . 1 . Parts Field Recycled . | . . . Retrieved Matter . | . . . Parts Self-Destructed . | . . . Prevented . | . . . Kills | -11 -10 -10 ------- Run | Yrd Mat Sub Combat Hostiles Destroyed 14 | . 9 5 Guns 12 | . 9 3 Classes Destroyed 6 | . 5 1 Hauler 2 | . 2 . Recycler 2 | . 2 . Watcher 1 | . 1 . Swarmer 3 | . 3 . Grunt 6 | . 6 . Subdweller 5 | . . 5 Best Kill Streak 3 | . 3 2 Combat Bots Only 3 | . 3 2 Max Kills in Single Turn 1 | . 1 1 Gunslinging . | . . . Exploded . | . . . Melee . | . . . Uniques/NPCs Destroyed . | . . . Combat | -11 -10 -10 -------- Run | Yrd Mat Sub Hostile Shots Fired 123 | . 46 77 Missed 32 | . 12 20 Hits 91 | . 34 57 Projectile 91 | . 34 57 Critical Strikes 1 | . . 1 Damage Taken 1271 | . 318 953 Core 262 | . 35 227 Absorbed by Shields . | . . . Redirected to Shielding 45 | . . 45 Ignored by Resistances 369 | . 99 270 Core Remaining (%) 100 | 100 . . Volleys Fired 73 | . 43 30 Largest 2 | . 2 2 Hottest 85 | . 85 85 Shots Fired 142 | . 85 57 Gun 142 | . 85 57 Cannon . | . . . Launcher . | . . . Special . | . . . Kinetic 70 | . 43 27 Thermal 72 | . 42 30 Explosive . | . . . Electromagnetic . | . . . Robot Hit Streak 59 | . 20 59 Robot Miss Streak 3 | . 3 . Penetration Max . | . . . Secondary Targets 3 | . 2 1 Max Gunslinging Chain 1 | . 1 1 Shots Hit Robots 139 | . 61 78 Core Hits 36 | . 28 8 Critical Kills . | . . . Critical Parts Destroyed 3 | . . 3 Critical Strikes 6 | . 1 5 Burn 1 | . 1 . Smash 5 | . . 5 Melee Attacks 33 | . . 33 Impact 33 | . . 33 Slashing . | . . . Piercing . | . . . Sneak Attacks . | . . . Combat Hostiles . | . . . Follow-up Attacks . | . . . Damage Inflicted 1909 | . 713 1196 Guns 1102 | . 713 389 Cannons . | . . . Explosions . | . . . Melee 807 | . . 807 Ramming . | . . . Kinetic 375 | . 258 117 Thermal 727 | . 455 272 Explosive . | . . . Electromagnetic . | . . . Impact 807 | . . 807 Slashing . | . . . Piercing . | . . . Highest Corruption 3 | . 3 3 Average Corruption 2 | . 2 3 Corruption Purged . | . . . Corruption Blocked . | . . . Effects 21 | . 9 12 Message Errors 4 | . . 4 Matter Fused 9 | . 4 5 Heat Flow Errors 2 | . 1 1 Energy Discharges 2 | . 1 1 Data Loss (minor) 2 | . 1 1 Data Loss (major) 1 | . 1 . Alerts 1 | . 1 . Overload Shots . | . . . Overflow Damage 137 | . . 137 Projectiles . | . . . Explosions . | . . . Melee 137 | . . 137 Knockbacks 4 | . . 4 Impact 4 | . . 4 Kinetic . | . . . Secondary . | . . . Self-Inflicted Damage . | . . . Shots . | . . . Rammed . | . . . Targets Rammed . | . . . Kicked . | . . . Crushed . | . . . Highest Temperature 143 | . 143 111 Average Temperature 20 | . 26 8 Received Heat Transfer 294 | . 147 147 Siege Activations . | . . . Martial Activations . | . . . Shielding Activations . | . . . Robots Disrupted . | . . . Combat Hostiles . | . . . Robots Corrupted 2 | . . 2 Combat Hostiles 2 | . . 2 Parts Fried 1 | . . 1 Impact Corruptions 7 | . . 7 Robots Melted . | . . . Combat Hostiles . | . . . Parts Melted 2 | . 2 . Heat Transferred 1827 | . 1161 666 Parts Sabotaged . | . . . Parts Stolen . | . . . Parts Stripped . | . . . Power Chain Reactions . | . . . Alert | -11 -10 -10 ------- Run | Yrd Mat Sub Maximum Alert Level . | . . . Low Security (%) 100 | 100 100 . Level 1 . | . . . Level 2 . | . . . Level 3 . | . . . Level 4 . | . . . Level 5 . | . . . High Security . | . . . Max Security . | . . . Peak Influence 70 | . 70 . Initial . | . . . Average 14 | . 15 . Influence Increases 282 | . 282 . Destroy 0b10 Robot/C 180 | . 180 . Destroy 0b10 Robot/NC 25 | . 25 . Destroy Leader 46 | . 46 . Successful Hack 16 | . 16 . Lose Combat Pursuer 15 | . 15 . Influence Decreases 282 | . 282 . Time Decay 282 | . 282 . Squads Dispatched 1 | . 1 . Investigation 1 | . 1 . Extermination . | . . . Reinforcement . | . . . Assault . | . . . Garrison . | . . . Intercept . | . . . Searches Triggered . | . . . Construction Impeded . | . . . Haulers Reinforced . | . . . Active Scanning Responses . | . . . Cargo Convoy Interrupts . | . . . Stealth | -11 -10 -10 --------- Run | Yrd Mat Sub Distress Signals . | . . . Communications Jammed . | . . . Distress Signals . | . . . Times Spotted 22 | . 15 7 Peak Tracking Total 3 | . 3 3 Tactical Retreats 1 | . 1 . Traps | -11 -10 -10 ------- Run | Yrd Mat Sub Traps Triggered 6 | . 6 . Indirectly . | . . . Trap Hack Attempts . | . . . Triggered . | . . . Disarmed . | . . . Reprogrammed . | . . . Reused . | . . . Traps Extracted . | . . . Installed . | . . . Triggered . | . . . Machines | -11 -10 -10 ---------- Run | Yrd Mat Sub Machines Disabled . | . . . Max in Single Turn . | . . . Machines Repaired . | . . . Machines Dismantled . | . . . Machines Sabotaged . | . . . Overloaded Fab Kills . | . . . Hacking | -11 -10 -10 --------- Run | Yrd Mat Sub Machines Accessed 3 | . 3 . Terminals 3 | . 3 . Fabricators . | . . . Repair Stations . | . . . Recycling Units . | . . . Scanalyzers . | . . . Garrison Access . | . . . Total Hacks 6 | . 6 . Successful 4 | . 4 . Failed 2 | . 2 . Catastrophic . | . . . Database Lockouts . | . . . Manual . | . . . Terminals 6 | . 6 . Fabricators . | . . . Repair Stations . | . . . Recycling Units . | . . . Scanalyzers . | . . . Garrison Access . | . . . Terminal Hacks 4 | . 4 . Prototype ID Bank 2 | . 2 . Hauler Manifests 2 | . 2 . Fabricator Hacks . | . . . Repair Station Hacks . | . . . Recycling Unit Hacks . | . . . Scanalyzer . | . . . Garrison Access Hacks . | . . . Unauthorized Hacks . | . . . Terminals . | . . . Fabricators . | . . . Repair Stations . | . . . Recycling Units . | . . . Scanalyzers . | . . . Garrison Access . | . . . Data Cores Recovered . | . . . Used . | . . . Hacking Detections 1 | . 1 . Full Trace Events . | . . . Feedback Events . | . . . Feedback Blocked . | . . . Robot Schematics Acquired . | . . . Robots Built . | . . . Authchips . | . . . Time . | . . . Total Robot Build Rating . | . . . Part Schematics Acquired . | . . . Parts Built . | . . . Authchips . | . . . Time . | . . . Total Part Build Rating . | . . . Parts Repaired . | . . . Time . | . . . Parts Recycled . | . . . Recycled Matter . | . . . Retrieved Matter . | . . . Retrieved Components . | . . . Parts Scanalyzed . | . . . Part Schematics Acquired . | . . . Parts Damaged . | . . . Bothacking | -11 -10 -10 ------------ Run | Yrd Mat Sub Used RIF Installer . | . . . Robots Hacked . | . . . Non-combat . | . . . Combat . | . . . Robot Hacks Applied . | . . . Relay Couplers Released . | . . . Fabnet Peak Effective % . | . . . Robots Rewired . | . . . Allies Hacked . | . . . Hacks Repelled . | . . . Allies | -11 -10 -10 -------- Run | Yrd Mat Sub Total Allies . | . . . Largest Group . | . . . Highest-Rated Group . | . . . Highest-Rated Ally . | . . . Total Orders . | . . . Ally Attacks . | . . . Total Damage . | . . . Kills . | . . . Allies Corrupted . | . . . Allies Melted . | . . . Intel | -11 -10 -10 ------- Run | Yrd Mat Sub Active Infowar (turns) . | . . . Robot Analysis Total . | . . . Derelict Logs Recovered . | . . . Drone Launches . | . . . Drone Recoveries . | . . . Exploration | -11 -10 -10 ------------- Run | Yrd Mat Sub Turns Passed 1645 | 70 1053 522 Spaces Moved 759 | 37 506 216 Core 4 | 4 . . Treads 755 | 33 506 216 Legs . | . . . Wheels . | . . . Hover . | . . . Flight . | . . . Fastest Speed 50 | 50 160 160 Average Speed 172 | 148 179 160 Slowest Speed 240 | 160 240 160 Overloaded Moves . | . . . Propulsion Burnouts . | . . . Robots Hopped . | . . . Potential Cave-ins . | . . . Cave-ins Triggered . | . . . Exploration Rate (%) 27 | 4 63 14 Regions Visited 2 Branch Regions 1 Pre-discovered Areas . | . . . Known Exits Taken . | . . . Unknown Exits Taken 2 | 1 1 . Scrap Searched . | . . . Spaces Dug . | . . . Terrain Destroyed . | . . . Melee . | . . . Projectile . | . . . AOE . | . . . Terrain Rammed . | . . . Walls Destroyed . | . . . Machines Disabled . | . . . Actions | -11 -10 -10 --------- Run | Yrd Mat Sub Total 922 | 52 575 295 Wait . | . . . Move 757 | 36 505 216 Hop . | . . . Pick Up 25 | 10 9 6 Fast Attach 3 | . 3 . Attach 11 | 6 1 4 Detach . | . . . Swap 9 | . 8 1 Drop 11 | . 6 5 Fire 73 | . 43 30 Melee 33 | . . 33 Ram . | . . . Kick . | . . . Crush . | . . . Escape Stasis . | . . . Rewire . | . . . Trap . | . . . Miscellaneous . | . . . Route ------- -11/Scrapyard -10/Materials (discovered 3 exits: [*Mat] / [*Min] / [*Sub]) -10/Subcaves History --------- Turn | Location | Event 10 | -11/Scrapyard | Discovered new exit (range 16) 71 | -11/Scrapyard | Entered Materials 222 | -10/Materials | Discovered new exit (range 7) 306 | -10/Materials | Build established: Mutant 589 | -10/Materials | Discovered new exit (range 5) 1117 | -10/Materials | Discovered new exit (range 5) 1124 | -10/Materials | Entered Subcaves 1132 | -10/Subcaves | A Subdweller sparked back to life 1193 | -10/Subcaves | Found Prototype Processor 1271 | -10/Subcaves | Core integrity fell below 50% 1290 | -10/Subcaves | Core integrity fell below 20% 1314 | -10/Subcaves | Lost 3 parts (1p1n1w) 1646 | -10/Subcaves | Destroyed by 1L-43W(R) with Subdweller Machine Gun Last Messages --------------- 9A-6UA(R) system terminally corrupted. Sub. Machine Gun fried. Acquired 38 matter. NQK>DCQC:USBJE=XKY|:
System corrupted: Heat flow error (+151).
UE-KBO(u) builds Twisted Machinery.
Dropped Core Shielding.
Dropped Aluminum Leg.